bitfinex/quotes_BTCUSD_20251102
["timestamp","ask_amount","ask_price","bid_price","bid_amount"]
[1762042994687,0.00022091,110150.0,110140.0,0.41145725]
[1762042997734,0.18179149,110150.0,110140.0,0.41145725]
[1762043000404,0.00022091,110150.0,110140.0,0.41145725]
[1762043000633,0.00022091,110150.0,110140.0,0.32163824]
[1762043001272,0.00022091,110150.0,110140.0,0.71415609]
[1762043001575,0.00022091,110150.0,110140.0,1.09033837]
[1762043001789,0.00022091,110150.0,110140.0,1.11762502]
[1762043002234,0.00022091,110150.0,110140.0,1.11262502]
[1762043002439,0.00022091,110150.0,110140.0,1.20244403]
[1762043002651,0.00022091,110150.0,110140.0,1.21244403]
[1762043003701,0.00022091,110150.0,110140.0,1.21144403]
[1762043004055,0.00022091,110150.0,110140.0,1.21444403]
[1762043004254,0.00022091,110150.0,110140.0,1.20144403]
[1762043004498,0.00022091,110150.0,110140.0,1.20444403]
[1762043004857,0.00022091,110150.0,110140.0,1.21544403]
[1762043006991,0.00022091,110150.0,110140.0,1.21644403]
[1762043009277,0.00022091,110150.0,110140.0,1.21544403]
[1762043009474,0.00022091,110150.0,110140.0,1.36424403]
[1762043010491,0.00022091,110150.0,110140.0,1.36524403]
[1762043015407,0.00022091,110150.0,110140.0,0.97172618]
[1762043015615,0.00022091,110150.0,110140.0,1.36424403]
[1762043018662,0.00022091,110150.0,110140.0,0.97172618]
[1762043018867,0.00022091,110150.0,110140.0,0.88190717]
[1762043019074,0.00022091,110150.0,110140.0,1.27442502]
[1762043022648,0.00022091,110150.0,110140.0,1.27542502]
[1762043023070,0.00022091,110150.0,110140.0,1.66794287]
[1762043023217,0.00022091,110150.0,110140.0,1.43046467]
[1762043023783,0.00022091,110150.0,110140.0,1.82298252]
[1762043023994,0.00022091,110150.0,110140.0,1.43046467]
[1762043027426,0.00022091,110150.0,110140.0,2.21465695]
[1762043035840,0.00022091,110150.0,110140.0,1.82142024]
[1762043037594,0.00022091,110150.0,110140.0,1.42918353]
[1762043038664,0.00022091,110150.0,110140.0,1.82142024]
[1762043038864,0.00022091,110150.0,110140.0,1.73160123]
[1762043040155,0.00022091,110150.0,110140.0,1.73260123]
[1762043040579,0.00022091,110150.0,110140.0,1.73160123]
[1762043041009,0.00022091,110150.0,110140.0,2.12483794]
[1762043041362,0.00022091,110150.0,110140.0,2.12383794]
[1762043041561,0.00022091,110150.0,110140.0,2.21365695]
[1762043042178,0.00022091,110150.0,110140.0,2.21465695]
[1762043043104,0.00022091,110150.0,110140.0,2.31042695]
[1762043043241,0.00022091,110150.0,110140.0,2.21465695]
[1762043046125,1e-08,110150.0,110140.0,3.50754737]
[1762043046349,0.15,110190.0,110180.0,0.18152114]
[1762043046563,0.15,110190.0,110180.0,0.74009568]
[1762043046766,0.15,110190.0,110180.0,0.74609357]
[1762043047600,0.15,110190.0,110180.0,1.1383784]
[1762043048200,0.15,110190.0,110180.0,1.1413784]
[1762043048439,0.15,110190.0,110180.0,1.1493784]
[1762043050225,0.15,110190.0,110180.0,0.75714169]
[1762043051924,0.17816269,110190.0,110180.0,0.75714169]
[1762043053124,0.17816269,110190.0,110180.0,1.1493784]
[1762043053278,0.17816269,110190.0,110180.0,0.75714169]
[1762043055094,0.15088328,110190.0,110180.0,0.75714169]
[1762043055321,0.33238795,110190.0,110180.0,0.75714169]
[1762043055737,0.33238795,110190.0,110180.0,0.53569788]
[1762043055994,0.15088328,110190.0,110180.0,0.71721902]
[1762043056195,0.33238795,110190.0,110180.0,0.71721902]
[1762043056427,0.33238795,110190.0,110180.0,0.14346117]
[1762043056629,0.33238795,110190.0,110180.0,0.55384999]
[1762043056829,0.33238795,110190.0,110180.0,0.71721902]
[1762043057924,0.15088328,110190.0,110180.0,0.71721902]
[1762043059935,0.33238795,110190.0,110180.0,0.71721902]
[1762043062407,0.15088328,110190.0,110180.0,0.71721902]
[1762043063939,0.33238795,110190.0,110180.0,0.71721902]
[1762043064137,0.15088328,110190.0,110180.0,0.71721902]
[1762043064320,0.33238795,110190.0,110180.0,0.71721902]
[1762043067652,0.15088328,110190.0,110180.0,0.71721902]
[1762043069689,0.33238795,110190.0,110180.0,0.71721902]
[1762043071449,0.15088328,110190.0,110180.0,0.71721902]
[1762043072409,0.33238795,110190.0,110180.0,0.71721902]
[1762043073286,0.15088328,110190.0,110180.0,0.71721902]
[1762043087435,0.15088328,110190.0,110180.0,0.71716111]
[1762043092980,0.15088328,110190.0,110180.0,0.80698012]
[1762043093184,0.15088328,110190.0,110180.0,1.1831624]
[1762043094005,0.15088328,110190.0,110180.0,1.6407121]
[1762043094583,0.15088328,110190.0,110180.0,1.6417121]
[1762043094807,0.15088328,110190.0,110180.0,1.6407121]
[1762043095021,0.15088328,110190.0,110180.0,1.6387121]
[1762043095193,0.15088328,110190.0,110180.0,1.6297121]
[1762043095391,0.15088328,110190.0,110180.0,1.6377121]
[1762043095773,0.15088328,110190.0,110180.0,1.6347121]
[1762043096210,0.15088328,110190.0,110180.0,1.648997]
[1762043096426,0.00088328,110190.0,110180.0,1.648997]
[1762043100452,0.00088328,110190.0,110180.0,1.80779699]
[1762043101590,0.00088328,110190.0,110180.0,1.797797]
[1762043105358,0.00088328,110190.0,110180.0,1.7324261]
[1762043107186,0.00088328,110190.0,110180.0,1.7314261]
[1762043107395,0.00088328,110190.0,110180.0,1.24942829]
[1762043108850,0.00088328,110190.0,110180.0,1.24014339]
[1762043111723,0.00088328,110190.0,110180.0,0.84796459]
[1762043111993,0.00088328,110190.0,110180.0,1.24014339]
[1762043113167,0.00088328,110190.0,110180.0,1.23514339]
[1762043113376,0.00088328,110190.0,110180.0,1.23414339]
[1762043113580,0.00088328,110190.0,110180.0,1.23714339]
[1762043125977,0.00088328,110190.0,110180.0,0.80878231]
[1762043127763,0.00088328,110190.0,110180.0,1.20096111]
[1762043129191,0.00088328,110190.0,110180.0,0.72707926]
[1762043129830,0.00088328,110190.0,110180.0,0.57827926]
[1762043130027,0.00088328,110190.0,110180.0,0.23227926]
[1762043130265,0.00088328,110190.0,110180.0,0.23527926]
[1762043130595,0.18238795,110190.0,110180.0,0.13546117]
[1762043130811,0.18238795,110190.0,110180.0,0.31698231]
[1762043130996,0.2096679,110190.0,110180.0,0.31698231]
[1762043131585,0.2096679,110190.0,110180.0,0.13546117]
[1762043132021,0.2096679,110190.0,110180.0,0.31698231]
[1762043133507,0.2096679,110190.0,110180.0,0.23527926]
[1762043133923,0.2096679,110190.0,110180.0,0.05375812]
[1762043134342,0.02816323,110190.0,110180.0,0.31698231]
[1762043134592,0.02816323,110190.0,110180.0,0.70916111]
[1762043135067,0.02816323,110190.0,110180.0,0.79898012]
[1762043135273,0.02816323,110190.0,110180.0,1.13898012]
[1762043135497,0.00088328,110190.0,110180.0,1.1751624]
[1762043135714,0.00088328,110190.0,110180.0,1.3239624]
[1762043136185,0.00088328,110190.0,110180.0,1.3209624]
[1762043136408,0.00088328,110190.0,110180.0,1.3239624]
[1762043137506,0.00088328,110190.0,110180.0,1.3269624]
[1762043149414,0.00088328,110190.0,110180.0,1.71885762]
[1762043154237,0.00088328,110190.0,110180.0,2.11089463]
[1762043154456,0.00088328,110190.0,110180.0,2.17626553]
[1762043154665,0.00088328,110190.0,110180.0,2.20353998]
[1762043154873,0.00088328,110190.0,110180.0,2.20453998]
[1762043161585,0.00088328,110190.0,110180.0,2.30022998]
[1762043161810,0.00088328,110190.0,110180.0,2.20453998]
[1762043162215,0.00088328,110190.0,110180.0,2.20436428]
[1762043182765,0.00088328,110190.0,110180.0,2.13899338]
[1762043184141,3.494e-05,110190.0,110180.0,2.13899338]
[1762043186362,3.494e-05,110190.0,110180.0,2.22051918]
[1762043193461,3.494e-05,110190.0,110180.0,2.13899338]
[1762043194320,0.0002,110230.0,110220.0,0.18145527]
[1762043194533,0.0002,110230.0,110220.0,0.29151832]
[1762043194743,0.0002,110230.0,110220.0,0.31503832]
[1762043195501,0.0082,110230.0,110220.0,0.31608644]
[1762043196330,0.0002,110230.0,110220.0,0.31508644]
[1762043196796,0.0022,110230.0,110220.0,0.31708644]
[1762043197908,0.1836388,110230.0,110220.0,0.31708644]
[1762043199939,0.18452161,110230.0,110220.0,0.31708644]
[1762043205370,0.00308281,110230.0,110220.0,0.31708644]
[1762043213887,0.00029625,110230.0,110220.0,0.33459638]
[1762043214085,0.0002,110240.0,110220.0,1.49470118]
[1762043214302,0.0002,110240.0,110230.0,1.02009622]
[1762043214500,0.0002,110250.0,110240.0,0.21760463]
[1762043214726,0.0002,110250.0,110240.0,1.56541921]
[1762043215402,0.0002,110250.0,110240.0,1.60183513]
[1762043215957,0.0002,110250.0,110240.0,1.20987387]
[1762043216164,0.0002,110250.0,110240.0,1.20587387]
[1762043216750,0.0002,110250.0,110240.0,1.19971817]
[1762043216975,0.0002,110250.0,110240.0,1.11089916]
[1762043217179,0.0002,110250.0,110240.0,1.11389916]
[1762043217430,0.0002,110250.0,110240.0,1.08663894]
[1762043217626,0.0002,110250.0,110240.0,0.69467768]
[1762043219076,0.0002,110250.0,110240.0,0.69067768]
[1762043219478,0.0002,110250.0,110240.0,0.68867768]
[1762043219677,0.0002,110250.0,110240.0,0.69067768]
[1762043219883,0.0002,110250.0,110240.0,0.68767768]
[1762043220228,0.00064124,110250.0,110240.0,0.69467768]
[1762043220780,0.00064124,110250.0,110240.0,1.08663894]
[1762043223006,0.00064124,110250.0,110240.0,1.17645795]
[1762043227379,0.00064124,110250.0,110240.0,1.20371899]
[1762043229617,0.00064124,110250.0,110240.0,0.96055773]
[1762043229814,0.00064124,110250.0,110240.0,1.35251899]
[1762043230983,0.00064124,110250.0,110240.0,1.23543894]
[1762043231644,0.00064124,110250.0,110240.0,1.6274002]
[1762043231855,0.00064124,110250.0,110240.0,1.65565789]
[1762043232006,0.00064124,110250.0,110240.0,1.65517789]
[1762043232868,0.00064124,110250.0,110240.0,1.65117789]
[1762043233065,0.00064124,110250.0,110240.0,1.7499969]
[1762043233514,0.00064124,110250.0,110240.0,1.7469969]
[1762043233940,0.00064124,110250.0,110240.0,1.7509969]
[1762043235152,0.00064124,110250.0,110240.0,1.61119689]
[1762043235354,1e-08,110250.0,110240.0,1.61219689]
[1762043235737,1e-08,110250.0,110240.0,1.59493919]
[1762043237774,1e-08,110250.0,110240.0,1.66389791]
[1762043238108,1e-08,110250.0,110240.0,1.66753192]
[1762043238718,1e-08,110250.0,110240.0,1.5985732]
[1762043241198,1e-08,110250.0,110240.0,1.7473732]
[1762043241845,1e-08,110250.0,110240.0,1.81407298]
[1762043242227,1e-08,110250.0,110240.0,1.87949203]
[1762043245621,0.0002,110270.0,110260.0,0.56757171]
[1762043245829,0.0002,110270.0,110260.0,1.5897194]
[1762043246039,0.0002,110270.0,110260.0,1.30308119]
[1762043246822,0.00068109,110270.0,110260.0,1.30308119]
[1762043247273,0.00068109,110270.0,110260.0,1.30708119]
[1762043247445,0.00068109,110270.0,110260.0,1.31108119]
[1762043249023,0.00068109,110270.0,110260.0,1.3010812]
[1762043249254,0.00068109,110270.0,110260.0,1.31108119]
[1762043249857,0.00068109,110270.0,110260.0,1.31008119]
[1762043251284,0.00112221,110270.0,110260.0,1.31008119]
[1762043254436,0.00112221,110270.0,110260.0,1.31108119]
[1762043256745,0.00112221,110270.0,110260.0,1.40677119]
[1762043256956,0.00112221,110270.0,110260.0,1.31108119]
[1762043257942,0.00112221,110270.0,110260.0,1.3010812]
[1762043258148,0.00112221,110270.0,110260.0,1.31108119]
[1762043259076,0.00112221,110270.0,110260.0,0.91911993]
[1762043259314,0.00112221,110270.0,110260.0,1.31108119]
[1762043264411,0.00112221,110270.0,110260.0,1.3010812]
[1762043264890,0.00112221,110270.0,110260.0,1.31108119]
[1762043265300,0.00112221,110270.0,110260.0,1.37616474]
[1762043268324,0.00112221,110270.0,110260.0,1.36616475]
[1762043268533,0.00112221,110270.0,110260.0,1.37616474]
[1762043269382,0.00112221,110270.0,110260.0,1.7671209]
[1762043271933,0.00112221,110270.0,110260.0,1.75712091]
[1762043272162,0.00112221,110270.0,110260.0,1.7671209]
[1762043274249,0.00112221,110270.0,110260.0,1.70203735]
[1762043275829,0.00112221,110270.0,110260.0,1.64149218]
[1762043276066,0.00112221,110270.0,110260.0,1.70578191]
[1762043276277,0.00112221,110270.0,110260.0,1.64049218]
[1762043280407,0.00112221,110270.0,110260.0,1.63049219]
[1762043280613,0.00112221,110270.0,110260.0,1.64049218]
[1762043280927,0.00112221,110270.0,110260.0,1.73031119]
[1762043281554,0.00112221,110270.0,110260.0,2.1227699]
[1762043282345,0.00112221,110270.0,110260.0,2.2042957]
[1762043283022,0.00112221,110270.0,110260.0,2.19429571]
[1762043283225,0.00112221,110270.0,110260.0,2.2042957]
[1762043286139,0.00112221,110270.0,110260.0,1.81183699]
[1762043286539,0.00112221,110270.0,110260.0,1.73031119]
[1762043287116,0.00112221,110270.0,110260.0,1.63049219]
[1762043293500,0.00098502,110270.0,110260.0,1.63049219]
[1762043297372,0.00067887,110270.0,110260.0,1.63049219]
[1762043298378,0.00067887,110270.0,110260.0,1.69579705]
[1762043302266,0.00067887,110270.0,110260.0,1.11935606]
[1762043302466,0.0279353,110270.0,110260.0,1.0540512]
[1762043302748,0.0279353,110270.0,110260.0,0.32259249]
[1762043302960,0.0279353,110270.0,110260.0,0.23688944]
[1762043303431,0.20930829,110270.0,110260.0,0.31559249]
[1762043303637,0.20930829,110270.0,110260.0,0.31859249]
[1762043304346,0.0279353,110270.0,110260.0,0.31759249]
[1762043305685,0.0299353,110270.0,110260.0,0.31759249]
[1762043306369,0.0299353,110270.0,110260.0,0.7090512]
[1762043306584,0.0299353,110270.0,110260.0,0.31759249]
[1762043308153,0.0299353,110270.0,110260.0,0.13620305]
[1762043308354,0.629347,110270.0,110260.0,0.31759249]
[1762043308564,0.629347,110270.0,110260.0,0.13620305]
[1762043308986,0.23788829,110270.0,110260.0,0.13620305]
[1762043310433,0.23788829,110270.0,110260.0,0.31759249]
[1762043310666,0.652847,110270.0,110260.0,0.003]
[1762043311939,0.652847,110270.0,110250.0,0.19332589]
[1762043312152,0.65040588,110270.0,110260.0,0.001]
[1762043312292,0.62914945,110270.0,110260.0,0.001]
[1762043312498,0.65641257,110270.0,110260.0,0.001]
[1762043312707,0.65041257,110270.0,110260.0,0.001]
[1762043312907,0.65041257,110270.0,110260.0,0.18238944]
[1762043313118,0.47503958,110270.0,110260.0,0.18238944]
[1762043313336,0.65641257,110270.0,110260.0,0.18238944]
[1762043313555,0.65041257,110270.0,110260.0,0.18238944]
[1762043313765,0.65041257,110270.0,110260.0,0.19789944]
[1762043313975,0.65641257,110270.0,110260.0,0.19789944]
[1762043314148,0.65641257,110270.0,110260.0,0.001]
[1762043314919,0.85641257,110270.0,110260.0,0.001]
[1762043317752,0.85741257,110270.0,110260.0,0.001]
[1762043318208,0.85785369,110270.0,110260.0,0.001]
[1762043318700,1.2483124,110270.0,110260.0,0.001]
[1762043318916,1.2493124,110270.0,110260.0,0.001]
[1762043326520,4.2493124,110270.0,110260.0,0.001]
[1762043328403,3.85785369,110270.0,110260.0,0.001]
[1762043328789,4.2493124,110270.0,110260.0,0.001]
[1762043330201,4.26885989,110270.0,110260.0,0.001]
[1762043331513,3.87782097,110270.0,110260.0,0.001]
[1762043337846,4.21782097,110270.0,110260.0,0.001]
[1762043340328,4.24234367,110270.0,110260.0,0.001]
[1762043340757,4.23634367,110270.0,110260.0,0.001]
[1762043341226,4.24447298,110270.0,110260.0,0.001]
[1762043341632,0.1808458,110230.0,110220.0,0.3140927]
[1762043341775,0.2078258,110230.0,110220.0,0.3301627]
[1762043342177,0.2078258,110230.0,110220.0,0.05793162]
[1762043342423,0.25773672,110230.0,110220.0,0.03025162]
[1762043342828,0.64961522,110230.0,110220.0,0.03029974]
[1762043343036,0.25773672,110230.0,110220.0,0.03880923]
[1762043343235,0.25773672,110230.0,110220.0,0.04080923]
[1762043343822,0.25773672,110230.0,110220.0,0.03329974]
[1762043344203,0.23568972,110230.0,110220.0,0.24253501]
[1762043345437,0.23568972,110230.0,110220.0,0.06107974]
[1762043346804,0.23550154,110230.0,110220.0,0.06107974]
[1762043347018,0.23550154,110230.0,110220.0,0.24253501]
[1762043348803,0.23550154,110230.0,110220.0,0.06107974]
[1762043349061,0.23550154,110230.0,110220.0,0.24253501]
[1762043349277,0.23550154,110230.0,110220.0,0.06107974]
[1762043349483,0.25814154,110230.0,110220.0,0.03329974]
[1762043350434,0.25814154,110230.0,110220.0,0.03229974]
[1762043350632,0.25814154,110230.0,110220.0,0.03729974]
[1762043350836,0.25814154,110230.0,110220.0,0.03529974]
[1762043351072,0.25814154,110230.0,110220.0,0.03629974]
[1762043351834,0.25814154,110230.0,110220.0,0.24502725]
[1762043352045,0.20823062,110230.0,110220.0,0.27280725]
[1762043354155,0.20823062,110230.0,110220.0,0.09135198]
[1762043356286,0.20823062,110230.0,110220.0,0.06407974]
[1762043356573,0.20823062,110230.0,110220.0,0.24553501]
[1762043360960,0.20823062,110230.0,110220.0,0.06407974]
[1762043361736,0.20823062,110230.0,110220.0,0.24553501]
[1762043361967,0.20823062,110230.0,110220.0,0.06407974]
[1762043362812,0.23182062,110230.0,110220.0,0.06407974]
[1762043362959,0.20823062,110230.0,110220.0,0.06407974]
[1762043364187,0.23182062,110230.0,110220.0,0.03629974]
[1762043366112,0.62369912,110230.0,110220.0,0.03629974]
[1762043379269,0.23182062,110230.0,110220.0,0.03629974]
[1762043388668,0.62369912,110230.0,110220.0,0.03629974]
[1762043389963,0.62369912,110230.0,110220.0,0.03529974]
[1762043390396,0.62369912,110230.0,110220.0,0.03629974]
[1762043391039,0.82369912,110230.0,110220.0,0.03629974]
[1762043391264,0.82369912,110230.0,110220.0,0.03129974]
[1762043391473,0.84531825,110230.0,110220.0,0.03129974]
[1762043391686,0.84631825,110230.0,110220.0,0.03129974]
[1762043392527,0.84531825,110230.0,110220.0,0.03129974]
[1762043393405,0.84552917,110230.0,110220.0,0.03129974]
[1762043424160,0.84372917,110230.0,110220.0,0.03129974]
[1762043425257,0.45163975,110230.0,110220.0,0.03129974]
[1762043425477,0.84372917,110230.0,110220.0,0.03129974]
[1762043425960,0.41366793,110230.0,110220.0,0.47466916]
[1762043426174,0.4096688,110230.0,110220.0,0.08257974]
[1762043426394,0.4096688,110230.0,110220.0,0.05874974]
[1762043427083,0.4326788,110230.0,110220.0,0.05874974]
[1762043427505,0.4326788,110230.0,110220.0,0.03129974]
[1762043428382,0.4163488,110230.0,110220.0,0.03129974]
[1762043429042,0.3933388,110230.0,110220.0,0.03129974]
[1762043430766,0.4125788,110230.0,110220.0,0.03129974]
[1762043431423,0.80466822,110230.0,110220.0,0.03129974]
[1762043432113,0.4125788,110230.0,110220.0,0.03129974]
[1762043435341,0.80466822,110230.0,110220.0,0.03129974]
[1762043435593,0.78542822,110230.0,110220.0,0.03129974]
[1762043435980,0.3933388,110230.0,110220.0,0.04783974]
[1762043436204,0.78542822,110230.0,110220.0,0.04783974]
[1762043436619,0.3933388,110230.0,110220.0,0.04783974]
[1762043439337,0.1834388,110230.0,110220.0,0.65673443]
[1762043439542,0.1834388,110230.0,110220.0,0.47527916]
[1762043439724,0.1834388,110230.0,110220.0,0.08318974]
[1762043440174,0.1989088,110230.0,110220.0,0.08318974]
[1762043441205,0.59099822,110230.0,110220.0,0.03129974]
[1762043441360,0.61023822,110230.0,110220.0,0.03129974]
[1762043445814,0.39408942,110230.0,110220.0,0.24089501]
[1762043446040,0.1834388,110230.0,110220.0,0.47527916]
[1762043446442,0.1834388,110230.0,110220.0,0.08318974]
[1762043446700,0.1834388,110230.0,110220.0,0.26464501]
[1762043447356,0.1834388,110230.0,110220.0,0.08318974]
[1762043448019,0.1834388,110230.0,110220.0,0.26464501]
[1762043450451,0.002,110230.0,110220.0,0.73843748]
[1762043450760,0.002,110230.0,110220.0,0.76570967]
[1762043451012,0.002,110230.0,110220.0,1.15779909]
[1762043451681,0.18140589,110250.0,110240.0,0.20956235]
[1762043451900,0.95394608,110260.0,110240.0,0.23331235]
[1762043452123,0.96941608,110260.0,110250.0,0.01654]
[1762043453434,0.42732666,110260.0,110250.0,0.01654]
[1762043454270,0.40772326,110260.0,110250.0,0.01654]
[1762043454775,0.40772326,110260.0,110250.0,0.01754]
[1762043454976,0.40872326,110260.0,110250.0,0.01754]
[1762043455207,0.40872326,110260.0,110250.0,0.001]
[1762043455624,0.42796326,110260.0,110250.0,0.001]
[1762043455847,0.81976724,110260.0,110250.0,0.001]
[1762043456517,0.42796326,110260.0,110250.0,0.001]
[1762043456742,0.81976724,110260.0,110250.0,0.001]
[1762043458227,3.83935352,110260.0,110250.0,0.001]
[1762043458454,3.84035352,110260.0,110250.0,0.001]
[1762043458664,4.5711575,110260.0,110250.0,0.001]
[1762043458885,4.18035352,110260.0,110250.0,0.001]
[1762043460153,4.21544832,110260.0,110250.0,0.001]
[1762043463940,1.20762479,110260.0,110250.0,0.001]
[1762043467434,1.20662479,110260.0,110250.0,0.001]
[1762043468197,1.17935352,110260.0,110250.0,0.001]
[1762043469278,0.76830954,110260.0,110250.0,0.02914]
[1762043469419,0.38261002,110260.0,110250.0,0.25853389]
[1762043469619,0.18261002,110260.0,110250.0,0.10439488]
[1762043469826,0.18261002,110260.0,110250.0,0.28580077]
[1762043470089,0.00122058,110260.0,110250.0,0.28580077]
[1762043470442,0.18161002,110260.0,110250.0,0.07977688]
[1762043470847,0.18161002,110260.0,110250.0,0.07877688]
[1762043471335,0.18161002,110260.0,110250.0,0.26218277]
[1762043471506,0.00022058,110260.0,110250.0,0.26218277]
[1762043471709,0.00022058,110260.0,110250.0,0.23691589]
[1762043473007,0.18161002,110260.0,110250.0,0.05551]
[1762043477557,0.20753002,110260.0,110250.0,0.05551]
[1762043479225,0.20753002,110260.0,110250.0,0.03214]
[1762043479226,0.599334,110260.0,110250.0,0.03214]
[1762043480045,0.20753002,110260.0,110250.0,0.03214]
[1762043481132,0.599334,110260.0,110250.0,0.004]
[1762043481343,0.618574,110260.0,110250.0,0.004]
[1762043481729,0.599334,110260.0,110250.0,0.004]
[1762043482435,0.618574,110260.0,110250.0,0.004]
[1762043483945,0.599334,110260.0,110250.0,0.02032]
[1762043484399,0.20753002,110260.0,110250.0,0.02032]
[1762043484531,0.599334,110260.0,110250.0,0.02032]
[1762043484752,0.599334,110260.0,110250.0,0.004]
[1762043491451,0.599334,110260.0,110250.0,0.01949]
[1762043493659,0.599334,110260.0,110250.0,0.004]
[1762043494066,0.599334,110260.0,110250.0,0.01949]
[1762043495579,0.818574,110260.0,110250.0,0.004]
[1762043496594,0.18140589,110250.0,110240.0,0.01225]
[1762043496796,0.18140589,110250.0,110240.0,0.03705]
[1762043497002,0.18140589,110250.0,110240.0,0.05254]
[1762043497210,0.19660589,110250.0,110240.0,0.02774]
[1762043498066,0.19660589,110250.0,110240.0,0.02974]
[1762043498478,0.19660589,110250.0,110240.0,0.03174]
[1762043501459,0.19660589,110250.0,110240.0,0.05654]
[1762043501864,0.18140589,110250.0,110240.0,0.05654]
[1762043505300,0.19660589,110250.0,110240.0,0.03174]
[1762043505516,0.58840987,110250.0,110240.0,0.03174]
[1762043505730,0.60764987,110250.0,110240.0,0.004]
[1762043507845,0.60764987,110250.0,110240.0,0.002]
[1762043508072,0.60764987,110250.0,110240.0,0.003]
[1762043508484,0.60764987,110250.0,110240.0,0.001]
[1762043508833,0.60864987,110250.0,110240.0,0.001]
[1762043515395,0.60876272,110250.0,110240.0,0.001]
[1762043518682,0.60976272,110250.0,110240.0,0.001]
[1762043518890,0.60876272,110250.0,110240.0,0.001]
[1762043519973,1.00167955,110250.0,110240.0,0.001]
[1762043520208,0.60976272,110250.0,110240.0,0.001]
[1762043520423,0.62936492,110250.0,110240.0,0.001]
[1762043520674,4.36128175,110250.0,110240.0,0.001]
[1762043520883,4.45049887,110250.0,110240.0,0.001]
[1762043521098,4.47500623,110250.0,110240.0,0.001]
[1762043521310,0.3814388,110230.0,110220.0,0.03029974]
[1762043521521,0.79958563,110230.0,110220.0,0.03029974]
[1762043521730,0.81782563,110230.0,110220.0,0.03029974]
[1762043521942,1.21074246,110230.0,110220.0,0.03029974]
[1762043522571,4.63244551,110230.0,110220.0,0.03029974]
[1762043522805,4.65202993,110230.0,110220.0,0.03129974]
[1762043523031,4.65953515,110230.0,110220.0,0.03029974]
[1762043523311,4.65202993,110230.0,110220.0,0.03029974]
[1762043523532,4.65202993,110230.0,110220.0,0.03129974]
[1762043527756,3.86819627,110230.0,110220.0,0.03129974]
[1762043527940,4.65202993,110230.0,110220.0,0.03129974]
[1762043532402,1.15817005,110230.0,110220.0,0.03129974]
[1762043532609,1.17741005,110230.0,110220.0,0.03129974]
[1762043533047,1.15782563,110230.0,110220.0,0.03129974]
[1762043536815,1.54974246,110230.0,110220.0,0.03129974]
[1762043537021,1.55074246,110230.0,110220.0,0.03129974]
[1762043537260,1.54974246,110230.0,110220.0,0.03129974]
[1762043537496,1.57801971,110230.0,110220.0,0.03129974]
[1762043538204,1.65972276,110230.0,110220.0,0.03129974]
[1762043541135,1.67926997,110230.0,110220.0,0.03129974]
[1762043545539,4.67926997,110230.0,110220.0,0.03129974]
[1762043546618,4.77496997,110230.0,110220.0,0.03129974]
[1762043546823,4.71127842,110230.0,110220.0,0.03129974]
[1762043548664,4.71105582,110230.0,110220.0,0.03129974]
[1762043548879,4.70377733,110230.0,110220.0,0.03129974]
[1762043549317,4.75066233,110230.0,110220.0,0.03129974]
[1762043551180,4.75066233,110230.0,110220.0,0.03029974]
[1762043552142,4.75466233,110230.0,110220.0,0.03029974]
[1762043552571,4.75654233,110230.0,110220.0,0.03029974]
[1762043554835,4.77077555,110230.0,110220.0,0.03029974]
[1762043555048,4.75654233,110230.0,110220.0,0.03029974]
[1762043557178,4.73203497,110230.0,110220.0,0.03029974]
[1762043557824,4.78101298,110230.0,110220.0,0.03029974]
[1762043558693,4.79524674,110230.0,110220.0,0.03029974]
[1762043559572,4.78101375,110230.0,110220.0,0.03029974]
[1762043559782,0.77338856,110210.0,110200.0,0.00148526]
[1762043560003,0.82015577,110210.0,110200.0,0.00162994]
[1762043560218,0.82115577,110210.0,110200.0,0.00162994]
[1762043560435,0.84039577,110210.0,110200.0,0.00162994]
[1762043560869,0.83939577,110210.0,110200.0,0.00162994]
[1762043561076,0.83945619,110210.0,110200.0,0.00462994]
[1762043562898,0.84045619,110210.0,110200.0,0.00462994]
[1762043563106,0.83945619,110210.0,110200.0,0.00462994]
[1762043563924,0.84847744,110210.0,110200.0,0.00462994]
[1762043564365,0.84947744,110210.0,110200.0,0.00462994]
[1762043564757,0.84847744,110210.0,110200.0,0.00462994]
[1762043566787,0.84947744,110210.0,110200.0,0.00462994]
[1762043567477,0.84847744,110210.0,110200.0,0.00462994]
[1762043568871,0.84947744,110210.0,110200.0,0.00462994]
[1762043569115,0.84847744,110210.0,110200.0,0.00462994]
[1762043570416,0.40869173,110210.0,110200.0,0.02078994]
[1762043570661,0.78399856,110210.0,110200.0,0.05594994]
[1762043571360,0.58399856,110210.0,110200.0,0.05594994]
[1762043571560,0.19208173,110210.0,110200.0,0.05594994]
[1762043573079,0.19208173,110210.0,110200.0,0.23743814]
[1762043573296,0.19208173,110210.0,110200.0,0.05594994]
[1762043575470,0.20869173,110210.0,110200.0,0.05594994]
[1762043577006,0.34208173,110210.0,110200.0,0.05594994]
[1762043578568,0.34208173,110210.0,110200.0,0.23743814]
[1762043579345,0.34208173,110210.0,110200.0,0.05594994]
[1762043579548,0.34208173,110210.0,110200.0,0.23743814]
[1762043580856,0.15,110210.0,110200.0,0.23743814]
[1762043581055,0.33147173,110210.0,110200.0,0.23743814]
[1762043582835,0.33147173,110210.0,110200.0,0.05594994]
[1762043583057,0.33147173,110210.0,110200.0,0.23743814]
[1762043588068,0.15,110210.0,110200.0,0.23743814]
[1762043588243,0.33147173,110210.0,110200.0,0.23743814]
[1762043591559,0.15,110210.0,110200.0,0.62956852]
[1762043591804,0.15,110210.0,110200.0,0.23743814]
[1762043592013,0.15,110210.0,110200.0,0.31914119]
[1762043592635,0.33147173,110210.0,110200.0,0.05594994]
[1762043593075,0.75052211,110210.0,110200.0,0.03295994]
[1762043593848,0.34208173,110210.0,110200.0,0.05565994]
[1762043594046,0.15,110210.0,110200.0,0.23714814]
[1762043594223,0.33147173,110210.0,110200.0,0.23714814]
[1762043595043,0.15,110210.0,110200.0,0.23714814]
[1762043595223,0.33147173,110210.0,110200.0,0.05565994]
[1762043595428,0.35839173,110210.0,110200.0,0.05565994]
[1762043595902,0.76976211,110210.0,110200.0,0.00462994]
[1762043600664,0.98937606,110210.0,110200.0,0.00462994]
[1762043604439,0.96976211,110210.0,110200.0,0.00462994]
[1762043607204,0.98936988,110210.0,110200.0,0.00462994]
[1762043608252,0.99036988,110210.0,110200.0,0.00462994]
[1762043611045,4.32936988,110210.0,110200.0,0.00462994]
[1762043611198,4.33036988,110210.0,110200.0,0.00462994]
[1762043611402,4.35765311,110210.0,110200.0,0.00462994]
[1762043612524,4.35765311,110210.0,110200.0,0.00362994]
[1762043612714,4.35765311,110210.0,110200.0,0.00162994]
[1762043612920,4.35865311,110210.0,110200.0,0.00162994]
[1762043631731,0.18150467,110190.0,110180.0,0.01221]
[1762043631913,0.59778505,110190.0,110180.0,0.21049587]
[1762043632312,0.59778505,110190.0,110180.0,0.21093749]